[Event "Super United Croatia GCT Rapid 2022"]
[Site "Zagreb"]
[Date "2022.07.22"]
[Round "8.3"]
[White "Carlsen, Magnus"]
[Black "Van Foreest, Jorden"]
[Result "1-0"]
[ECO "A29"]
[WhiteElo "2864"]
[BlackElo "2678"]
[Annotator "TA"]
[PlyCount "85"]
[EventDate "2022.07.20"]
[EventType "tourn"]
[EventCountry "CRO"]
[SourceTitle "playchess.com"]
[Source "ChessBase"]
[SourceQuality "1"]
[TimeControl "1500+10"]

{[%evp 12,85,37,32,30,29,37,35,59,70,61,59,57,33,41,20,69,69,62,62,56,58,79,52,78,38,67,98,107,101,99,93,100,100,91,63,44,45,52,33,39,36,78,79,90,69,65,69,153,166,197,207,204,211,197,204,202,141,255,255,279,270,306,308,395,388,361,265,425,413,1992,1317,6133,6125,12838,12837]} 1. c4 {[%emt 0:00:01]} e5 {[%emt 0:00:16]} 2. g3 {[%emt 0:00:02]} d5 {[%emt 0:00:02]} 3. cxd5 {[%emt 0:00:02]} Qxd5 {[%emt 0:00:02]} 4. Nf3 {[%emt 0:00:04]} Nc6 {[%emt 0:00:11]} 5. Nc3 {[%emt 0:00:04]} Qd8 {[%emt 0:00:06]} 6. Bg2 {[%emt 0:00:06]} Nf6 {[%emt 0:00:23]} 7. O-O {[%emt 0:00:04]} Be7 {[%emt 0:00:44] 7...h6 injects fresh life into this line. A29: English Opening: Four Knights Variation with 4 g3.} 8. b4 {[%emt 0:00:49] [#]} e4 $146 {[%emt 0:00:02]} ({Predecessor:} 8... a6 9. a3 O-O 10. Bb2 Re8 11. Rc1 Bd6 12. Ng5 Bf5 13. Nge4 Rb8 14. Nxf6+ Qxf6 15. Ne4 {½-½ (45) Xiong,J (2688)-Nakamura,H (2766) Chess.com INT 2022}) 9. Ng5 {[%emt 0:00:05]} Bxb4 {[%emt 0:00:05] White is slightly better.} 10. Ngxe4 {[%emt 0:00:08]} Nxe4 {[%emt 0:00:09]} 11. Nxe4 {[%emt 0:00:14][%cal Bc3e4,Be4c5,Bc5a6][%mdl 32]} O-O {[%emt 0:00:13]} 12. a3 {[%emt 0:00:31]} Be7 {[%emt 0:00:56]} (12... Qd4 13. Rb1 Ba5 14. e3 $16) 13. Bb2 {[%emt 0:00:02]} Re8 {[%emt 0:01:17]} (13... f5 $11 14. Nc3 (14. Qb3+ Rf7 $11) 14... Be6) 14. Rc1 $14 {[%emt 0:00:45]} Bf8 {[%emt 0:01:19]} 15. e3 {[%emt 0:01:02][%cal Be2e3,Be3e4][%mdl 32]} Bf5 {[%emt 0:03:50]} 16. Nc5 {[%emt 0:00:11]} Rb8 {[%emt 0:00:46]} 17. d4 {[%emt 0:00:46]} Na5 {[%emt 0:01:25]} 18. e4 {[%emt 0:00:37]} Bg6 {[%emt 0:01:11]} 19. f4 {[%emt 0:00:27]} b6 {[%emt 0:03:33]} 20. Na6 {[%emt 0:00:21][%csl LRb8,LRc7]} Bxe4 {[%emt 0:00:02]} 21. Bxe4 {[%emt 0:00:20]} ({And not} 21. Rxc7 Bxg2 22. Kxg2 Rc8 23. Rxc8 Qxc8 $17) 21... Rxe4 {[%emt 0:00:02]} 22. Nxb8 {[%emt 0:00:22]} Qxb8 {[%emt 0:00:01]} 23. Re1 {[%emt 0:00:52]} Rxe1+ {[%emt 0:01:02]} 24. Qxe1 {[%emt 0:00:01]} Qd8 {[%emt 0:01:17]} 25. Qc3 {[%emt 0:00:32]} c6 {[%emt 0:00:32]} 26. Qf3 $36 {[%emt 0:01:04][%mdl 2048] White has good play.} b5 {[%emt 0:01:16]} 27. d5 $1 {[%emt 0:02:27]} cxd5 {[%emt 0:01:53]} 28. Rd1 {[%emt 0:00:02] White is more active.} Nc4 $1 {[%emt 0:00:23]} 29. Rxd5 {[%emt 0:00:44]} Qe7 {[%emt 0:01:32] [#]} (29... Qc7 $14) 30. Bd4 $1 $16 {[%emt 0:00:43]} ({Weaker is} 30. Rxb5 a6 31. Rb7 Nd2 32. Rxe7 Nxf3+ 33. Kf2 Bxe7 $11) 30... Qe1+ {[%emt 0:00:27] [#]} 31. Kg2 $1 {[%emt 0:00:08]} Qe8 {[%emt 0:02:41]} 32. Bxa7 {[%emt 0:01:19]} Bxa3 {[%emt 0:00:02]} 33. Bf2 {[%emt 0:00:48]} Bf8 {[%emt 0:00:22]} 34. Qd3 {[%emt 0:00:16]} Qa8 {[%emt 0:00:38]} (34... Qc6 $16 35. Kg1 Bd6) 35. Kh3 $18 {[%emt 0:01:11] Threatens to win with Rd8.} Qc8+ {[%emt 0:00:13]} 36. f5 {[%emt 0:00:55] And now Rd8 would win.} Be7 {[%emt 0:01:36] Prevents Rd8+.} 37. Rxb5 {[%emt 0:01:21]} h5 {[%emt 0:00:18]} 38. Rd5 {[%emt 0:02:16]} g5 {[%emt 0:00:01]} 39. Kg2 {[%emt 0:01:08][%cal Of2c5] Bc5! is the strong threat.} Qc6 {[%emt 0:00:27] Prevents Bc5.} (39... Bf6 40. Rc5 Qa8+ 41. Qf3 Qxf3+ 42. Kxf3 Nd2+ 43. Ke2 Ne4 44. Rc8+ Kg7) 40. Kg1 {[%emt 0:00:33][%cal Of5f6] Black must now prevent f6!} Bd6 {[%emt 0:00:17]} (40... Qa4 $142 41. Bd4 f6) 41. Rd4 {[%emt 0:00:46] White is clearly winning.} Ne5 {[%emt 0:00:14]} 42. Rxd6 {[%emt 0:00:01]} Nf3+ {[%emt 0:00:05]} 43. Kh1 {[%emt 0:00:05] Weighted Error Value: White=0.09 (flawless) /Black=0.24 (precise)} 1-0

[Event "Super United Croatia GCT Rapid 2022"]
[Site "Zagreb"]
[Date "2022.07.22"]
[Round "8.4"]
[White "Firouzja, Alireza"]
[Black "So, Wesley"]
[Result "1/2-1/2"]
[ECO "C67"]
[WhiteElo "2793"]
[BlackElo "2773"]
[Annotator "TA"]
[PlyCount "146"]
[EventDate "2022.07.20"]
[EventType "tourn"]
[EventCountry "CRO"]
[SourceTitle "playchess.com"]
[Source "ChessBase"]
[SourceQuality "1"]
[TimeControl "1500+10"]

{[%evp 18,146,26,21,22,22,22,22,17,20,15,18,22,6,7,9,11,0,4,0,0,0,27,26,22,12,7,5,10,4,4,0,0,0,0,0,0,0,0,0,0,-10,-7,-7,-7,-6,0,-8,-6,-8,-7,-7,-7,-7,-4,-4,0,0,0,-7,0,-7,0,-8,0,-8,-8,-8,-8,-8,-7,-7,-7,-7,0,-7,-7,-7,-7,-7,-7,-7,-7,-7,-7,-7,-7,-7,-7,-7,-7,-7,-7,-7,0,0,0,0,0,0,0,0,0,0,0,0,0,0,0,0,0,0,0,0,0,0,0,0,0,0,0,0,0,0,0,0,0,0,0,0,0]} 1. e4 {[%emt 0:00:01]} e5 {[%emt 0:00:04]} 2. Nf3 {[%emt 0:00:02]} Nc6 {[%emt 0:00:02]} 3. Bb5 {[%emt 0:00:02]} Nf6 {[%emt 0:00:17]} 4. O-O {[%emt 0:00:03][%cal Bh1f1,Bf1e1,Be1e5][%mdl 32]} Nxe4 {[%emt 0:00:03]} 5. Re1 {[%emt 0:00:01]} Nd6 {[%emt 0:00:02]} 6. Nxe5 {[%emt 0:00:02]} Be7 {[%emt 0:00:02]} 7. Bf1 {[%emt 0:00:02]} Nxe5 {[%emt 0:00:01]} 8. Rxe5 {[%emt 0:00:02]} O-O {[%emt 0:00:02]} 9. d4 {[%emt 0:00:02]} Bf6 {[%emt 0:00:04]} 10. Re1 {[%emt 0:00:02]} Re8 {[%emt 0:00:02] C67: Ruy Lopez: Berlin Defence: 4 0-0 Nxe4.} 11. Bf4 {[%emt 0:00:04]} Rxe1 {[%emt 0:00:02]} 12. Qxe1 {[%emt 0:00:01]} Ne8 {[%emt 0:00:01]} 13. c3 {[%emt 0:00:03]} d5 {[%emt 0:00:03]} 14. Nd2 {[%emt 0:00:21][%cal Bb1d2,Bd2f3,Bf3e5][%mdl 32]} c6 {[%emt 0:00:11]} 15. Bd3 {[%emt 0:00:23]} g6 {[%emt 0:00:18]} 16. Nf3 {[%emt 0:00:12]} Ng7 {[%emt 0:00:18]} 17. Bh6 {[%emt 0:00:09]} Nf5 {[%emt 0:01:11]} 18. Bxf5 {[%emt 0:00:06]} Bxf5 {[%emt 0:00:01] [#]} 19. Qd2 $146 {[%emt 0:04:37]} ({Predecessor:} 19. h3 Be4 20. Nd2 Qe7 21. Qe3 Re8 22. Qf4 Bf5 23. Nf3 Qd8 24. Ne5 Be7 25. g4 {½-½ (80) Grandelius,N (2659)-Firouzja,A (2726) Prague 2020}) 19... Qd7 {[%emt 0:00:47]} 20. Ne5 {[%emt 0:03:21]} Qd6 {[%emt 0:02:05]} 21. Qf4 {[%emt 0:04:30][%cal Oe5g6] The position is equal.} Be7 {[%emt 0:01:03]} 22. g4 {[%emt 0:01:51]} Be6 {[%emt 0:00:02]} 23. Re1 {[%emt 0:01:01][%cal Oh2h4]} Re8 {[%emt 0:00:28]} 24. Qf3 {[%emt 0:01:38]} f6 {[%emt 0:01:27]} 25. Nd3 {[%emt 0:00:03]} b6 {[%emt 0:00:32]} 26. h3 {[%emt 0:00:40]} Qd7 {[%emt 0:00:59]} 27. Re3 {[%emt 0:00:59]} Bd8 {[%emt 0:03:58]} 28. Qe2 {[%emt 0:00:54]} Bf7 {[%emt 0:00:17]} 29. Rxe8+ {[%emt 0:00:02]} Qxe8 {[%emt 0:00:02]} 30. Qxe8+ {[%emt 0:00:02]} Bxe8 $11 {[%emt 0:00:02][%mdl 4096] Endgame KBB-KBN} 31. Bf4 {[%emt 0:00:13]} h5 {[%emt 0:01:07]} 32. f3 {[%emt 0:00:21]} hxg4 {[%emt 0:00:04]} 33. hxg4 {[%emt 0:00:02]} g5 {[%emt 0:00:10]} 34. Bb8 {[%emt 0:00:03]} a5 {[%emt 0:00:04]} ({Don't take} 34... Bg6 35. Nb4 Be8 36. Bxa7 $14) 35. Kf2 {[%emt 0:00:04]} Bg6 {[%emt 0:00:28]} 36. Ke3 {[%emt 0:00:05]} Kf7 {[%emt 0:00:14]} 37. f4 {[%emt 0:00:16]} gxf4+ {[%emt 0:00:03]} 38. Bxf4 {[%emt 0:00:12]} Ke6 {[%emt 0:00:20]} 39. Bg3 {[%emt 0:00:13]} Kd7 {[%emt 0:00:16]} 40. Bh4 {[%emt 0:00:29]} Be7 {[%emt 0:00:13]} 41. a3 {[%emt 0:00:41]} a4 {[%emt 0:00:21]} 42. Nf4 {[%emt 0:00:09]} Bc2 {[%emt 0:00:15]} 43. Kd2 {[%emt 0:00:30]} Bb1 {[%emt 0:00:25]} 44. Ke3 {[%emt 0:00:09]} Ke8 {[%emt 0:00:11]} 45. Nh3 {[%emt 0:00:46]} Bd8 {[%emt 0:00:17]} 46. Nf4 {[%emt 0:00:11]} Kf7 {[%emt 0:00:04]} 47. Nd3 {[%emt 0:00:40]} Bxd3 {[%emt 0:02:12]} 48. Kxd3 {[%emt 0:00:02] KB-KB} Be7 {[%emt 0:00:01]} 49. Bg3 {[%emt 0:02:15]} Kg6 {[%emt 0:00:15] [#] Threatens to win with ...Kg5.} 50. Ke2 {[%emt 0:00:30]} Kg5 {[%emt 0:00:42]} 51. Kf3 {[%emt 0:00:04]} Bf8 {[%emt 0:00:19]} 52. Bc7 {[%emt 0:00:15]} b5 {[%emt 0:00:03]} 53. Bf4+ {[%emt 0:00:15]} Kg6 {[%emt 0:00:19]} 54. Be3 {[%emt 0:00:28]} Be7 {[%emt 0:00:15]} 55. Bf4 {[%emt 0:00:14]} c5 {[%emt 0:00:20]} 56. dxc5 {[%emt 0:00:22]} Bxc5 {[%emt 0:00:02]} 57. Be3 {[%emt 0:00:07]} Bd6 {[%emt 0:00:04]} 58. Bd2 {[%emt 0:00:16]} Kf7 {[%emt 0:00:35]} 59. Be3 {[%emt 0:00:08]} Ke6 {[%emt 0:00:04]} 60. Ke2 $1 {[%emt 0:00:25]} Bc7 {[%emt 0:00:15]} 61. Kf3 {[%emt 0:00:07]} Be5 {[%emt 0:00:20]} 62. Ke2 {[%emt 0:00:07]} Bg3 {[%emt 0:00:08]} 63. Kf3 {[%emt 0:00:28]} Bh4 {[%emt 0:00:04]} 64. Bf4 {[%emt 0:00:09]} Kd7 {[%emt 0:01:13]} 65. Be3 {[%emt 0:00:18]} Kd6 {[%emt 0:00:06]} 66. Ke2 {[%emt 0:00:15]} Ke5 {[%emt 0:00:14]} 67. Kf3 {[%emt 0:00:01]} Kd6 {[%emt 0:00:47]} 68. Ke2 {[%emt 0:00:04]} Bg3 {[%emt 0:01:17]} 69. Kf3 {[%emt 0:00:04]} Be5 {[%emt 0:00:02]} 70. Ke2 {[%emt 0:00:16]} Ke6 {[%emt 0:00:07]} 71. Kf3 {[%emt 0:00:04]} Kd6 {[%emt 0:00:01]} 72. Ke2 {[%emt 0:00:01]} Ke6 {[%emt 0:00:01]} 73. Kf3 {[%emt 0:00:01]} Kd6 {[%emt 0:00:04] An interesting draw.  Weighted Error Value: White=0.02 (flawless) /Black=0.02 (flawless)} 1/2-1/2

[Event "Super United Croatia GCT Rapid 2022"]
[Site "Zagreb"]
[Date "2022.07.22"]
[Round "8.5"]
[White "Mamedyarov, Shakhriyar"]
[Black "Dominguez Perez, Leinier"]
[Result "1/2-1/2"]
[ECO "D20"]
[WhiteElo "2759"]
[BlackElo "2754"]
[Annotator "TA"]
[PlyCount "67"]
[EventDate "2022.07.20"]
[EventType "tourn"]
[EventCountry "CRO"]
[SourceTitle "playchess.com"]
[Source "ChessBase"]
[SourceQuality "1"]
[TimeControl "1500+10"]

{[%evp 9,67,22,50,12,5,15,12,11,5,20,0,0,7,8,0,10,21,21,10,28,14,22,16,0,19,0,0,0,0,0,0,0,0,0,0,0,0,0,0,0,0,0,0,0,0,0,0,0,0,0,0,0,0,0,0,0,0,0,0,0]} 1. d4 {[%emt 0:00:07]} d5 {[%emt 0:00:12]} 2. c4 {[%emt 0:00:02]} dxc4 {[%emt 0:00:02]} 3. e4 {[%emt 0:00:03]} e5 {[%emt 0:00:02]} 4. Nf3 {[%emt 0:00:04]} Bb4+ {[%emt 0:00:02]} 5. Nc3 {[%emt 0:00:02]} Nf6 {[%emt 0:00:01]} 6. Bxc4 {[%emt 0:00:17] [#] aiming for Qa4+. D20: Queen's Gambit Accepted: 3 e3 and 3 e4.} (6. Nxe5 $5 {[%cal Rd1a4]} O-O 7. f3 $14 (7. Bxc4 Nxe4 8. O-O Nd6 $16)) 6... exd4 $1 {[%emt 0:00:03]} 7. Nxd4 {[%emt 0:00:02]} O-O {[%emt 0:00:03]} 8. O-O {[%emt 0:00:02]} Bxc3 {[%emt 0:00:02]} 9. bxc3 {[%emt 0:00:02]} Nxe4 {[%emt 0:00:02] [#]} 10. Bd3 $146 {[%emt 0:00:03]} ({Predecessor:} 10. Ba3 Nd6 11. Nb5 Nxc4 12. Bxf8 Qxf8 13. Nxc7 Nb6 14. Rb1 Na6 15. Nxa8 Nxa8 16. Qd4 {½-½ (40) Van Wely,L (2674)-Van Foreest,J (2640) Amsterdam 2018}) 10... Nf6 {[%emt 0:00:10]} 11. Ba3 {[%emt 0:00:03] A strong pair of Bishops.} Re8 {[%emt 0:00:07]} 12. Re1 {[%emt 0:00:02]} Bd7 {[%emt 0:01:13]} 13. Qb3 {[%emt 0:01:56][%cal Oa3e7] [#] Black must now prevent Be7!} Nc6 {[%emt 0:01:00] Inhibits Be7.} 14. Qxb7 {[%emt 0:00:10]} Nxd4 {[%emt 0:00:07]} 15. cxd4 {[%emt 0:00:07][%cal Oa3e7] The position is equal.} Be6 {[%emt 0:01:57]} 16. Bc5 {[%emt 0:00:33]} h6 {[%emt 0:02:48]} 17. a3 {[%emt 0:00:56]} Bd5 {[%emt 0:00:48]} 18. Rxe8+ {[%emt 0:00:25]} Nxe8 {[%emt 0:00:04]} 19. Qa6 {[%emt 0:00:18]} Nd6 {[%emt 0:01:32]} 20. Bxd6 {[%emt 0:04:22]} (20. Qa5 {with more complications.} Nb7 21. Qc3 Nxc5 22. Qxc5 g6 23. Re1) 20... Qxd6 {[%emt 0:00:15]} 21. Qxd6 {[%emt 0:00:05]} (21. Rb1 {looks sharper.} c6 22. Qb7 Qd8 23. Qb4) 21... cxd6 $11 {[%emt 0:00:01][%mdl 4096] Endgame KRB-KRB} 22. Rb1 {[%emt 0:00:06]} Rc8 {[%emt 0:00:34]} 23. f3 {[%emt 0:00:09]} g6 {[%emt 0:00:50]} 24. Rb5 {[%emt 0:00:12]} Bc4 {[%emt 0:00:09]} 25. Bxc4 {[%emt 0:00:03]} Rxc4 {[%emt 0:00:01] KR-KR} 26. Rd5 {[%emt 0:00:22]} Ra4 {[%emt 0:00:08]} 27. Rxd6 {[%emt 0:00:01]} Rxa3 {[%emt 0:00:02]} 28. d5 {[%emt 0:00:02]} Rd3 {[%emt 0:00:06]} 29. Ra6 {[%emt 0:00:01]} Rxd5 {[%emt 0:00:02]} 30. Rxa7 {[%emt 0:00:02]} Rd1+ {[%emt 0:00:02]} 31. Kf2 {[%emt 0:00:01]} Rd2+ {[%emt 0:00:01]} 32. Kg1 {[%emt 0:00:01]} Rd1+ {[%emt 0:00:01]} 33. Kf2 {[%emt 0:00:01]} Rd2+ {[%emt 0:00:01]} 34. Kg1 {[%emt 0:00:02] An interesting draw.  Weighted Error Value: White=0.03 (flawless) /Black=0.03 (flawless)} 1/2-1/2

[Event "Super United Croatia GCT Rapid 2022"]
[Site "Zagreb"]
[Date "2022.07.22"]
[Round "9.1"]
[White "Dominguez Perez, Leinier"]
[Black "Vachier-Lagrave, Maxime"]
[Result "1/2-1/2"]
[ECO "B90"]
[WhiteElo "2754"]
[BlackElo "2760"]
[Annotator "TA"]
[PlyCount "80"]
[EventDate "2022.07.20"]
[EventType "tourn"]
[EventCountry "CRO"]
[SourceTitle "playchess.com"]
[Source "ChessBase"]
[SourceQuality "1"]
[TimeControl "1500+10"]

{[%evp 15,80,29,46,18,16,18,9,10,12,12,43,37,40,34,32,30,27,35,31,41,39,41,48,39,62,77,106,110,112,104,112,84,85,70,108,106,121,105,104,108,121,113,126,120,130,64,116,86,101,83,95,85,83,0,95,15,27,23,28,22,29,0,7,0,26,0,9]} 1. e4 {[%emt 0:00:01]} c5 {[%emt 0:00:03]} 2. Nf3 {[%emt 0:00:02]} d6 {[%emt 0:00:01]} 3. d4 {[%emt 0:00:01]} cxd4 {[%emt 0:00:01]} 4. Nxd4 {[%emt 0:00:02]} Nf6 {[%emt 0:00:01]} 5. Nc3 {[%emt 0:00:02]} a6 {[%emt 0:00:01]} 6. Be3 {[%emt 0:00:01]} e5 {[%emt 0:00:02]} 7. Nf3 {[%emt 0:00:02]} Be7 {[%emt 0:00:09]} 8. Bc4 {[%emt 0:00:03]} Be6 {[%emt 0:00:02]} 9. Bb3 {[%emt 0:00:02] B90: Sicilian Najdorf: Unusual White 6th moves, 6 Be3 Ng4 and 6 Be3 e5.} Nbd7 $1 {[%emt 0:00:17][%mdl 4] is more profitable than 9...0-0 at the moment.} 10. O-O {[%emt 0:00:03]} Rc8 {[%emt 0:00:02]} 11. Qd3 {[%emt 0:00:01]} Qc7 {[%emt 0:00:48]} 12. a4 {[%emt 0:00:09] [#]} Bc4 $146 {[%emt 0:00:13]} ({Predecessor:} 12... O-O 13. Bxe6 fxe6 14. Ng5 Qc4 15. Qxc4 Rxc4 16. Nxe6 Rfc8 17. Ng5 h6 18. Nf3 Nxe4 19. Nxe4 Rxe4 {½-½ (37) Delchev,A (2561)-Roiz,M (2602) Budva 2019}) 13. Bxc4 {[%emt 0:00:08]} Qxc4 {[%emt 0:00:01]} 14. Qxc4 {[%emt 0:01:21]} Rxc4 {[%emt 0:00:02]} 15. Nd2 {[%emt 0:00:02][%cal Bf3d2,Bd2f1,Bf1e3][%mdl 32]} Rc6 {[%emt 0:00:09]} 16. a5 {[%emt 0:02:08]} O-O {[%emt 0:01:46]} 17. f3 {[%emt 0:00:23]} Rfc8 {[%emt 0:00:31]} 18. Rfd1 {[%emt 0:01:06]} Bd8 {[%emt 0:00:58]} 19. Bf2 {[%emt 0:05:22]} Kf8 {[%emt 0:02:34]} 20. Nf1 {[%emt 0:00:50]} b5 {[%emt 0:00:14]} 21. axb6 {[%emt 0:00:24]} Bxb6 {[%emt 0:00:02]} 22. Bxb6 {[%emt 0:00:25]} Rxb6 {[%emt 0:00:02]} 23. Na4 {[%emt 0:00:02]} Rbc6 {[%emt 0:00:35]} 24. Ne3 {[%emt 0:00:02] Inhibits d5.} Rb8 {[%emt 0:00:34]} 25. b3 {[%emt 0:00:25]} g6 {[%emt 0:00:27]} 26. Nb2 {[%emt 0:02:44]} Nc5 {[%emt 0:00:17]} 27. Nbc4 {[%emt 0:00:09]} Ke7 {[%emt 0:00:23]} 28. Ra3 {[%emt 0:01:44]} Ne6 {[%emt 0:02:17]} 29. Ra5 {[%emt 0:02:44]} Rb5 {[%emt 0:02:10]} 30. Ra2 {[%emt 0:02:37]} (30. Ra4 $16) 30... Nc7 {[%emt 0:00:39] Inhibits Nd5+.} ({Better is} 30... Nd4 $14) 31. Na5 {[%emt 0:01:37] 0x0.0019e9e2cb53dp-1022s more active pieces.} Rcc5 {[%emt 0:00:06] [#]} 32. Rda1 $1 {[%emt 0:00:32]} Ne6 {[%emt 0:03:11]} 33. Nac4 {[%emt 0:00:57]} Nc7 {[%emt 0:00:02]} 34. Na5 {[%emt 0:01:16]} (34. Re1 $16) 34... Rb8 {[%emt 0:00:12]} (34... Ne6 $1 $11 {keeps the balance.}) 35. c4 {[%emt 0:02:18]} (35. g4 $16) 35... Ne6 $11 {[%emt 0:00:03]} 36. Nc2 {[%emt 0:00:18]} Rcc8 {[%emt 0:00:35]} 37. b4 {[%emt 0:00:01]} Nd7 {[%emt 0:00:46]} 38. Ne3 {[%emt 0:00:20]} Nf6 {[%emt 0:01:18]} 39. Nc2 {[%emt 0:00:16]} Nd7 {[%emt 0:00:06]} 40. Ne3 {[%emt 0:00:03]} Nf6 {[%emt 0:01:00] Weighted Error Value: White=0.14 (very precise) /Black=0.15 (very precise)} 1/2-1/2

[Event "Super United Croatia GCT Rapid 2022"]
[Site "Zagreb"]
[Date "2022.07.22"]
[Round "9.2"]
[White "So, Wesley"]
[Black "Mamedyarov, Shakhriyar"]
[Result "1/2-1/2"]
[ECO "C50"]
[WhiteElo "2773"]
[BlackElo "2759"]
[Annotator "TA"]
[PlyCount "131"]
[EventDate "2022.07.20"]
[EventType "tourn"]
[EventCountry "CRO"]
[SourceTitle "playchess.com"]
[Source "ChessBase"]
[SourceQuality "1"]
[TimeControl "1500+10"]

{[%evp 9,131,18,9,16,15,22,14,12,17,7,20,16,28,0,0,0,0,0,0,0,0,0,0,0,0,0,0,0,0,0,0,2,16,-57,-39,-38,-69,-70,-34,-47,-60,-126,-116,-81,-69,-174,-139,-129,-133,-127,-113,-183,-56,-59,-64,-57,0,-63,-34,-56,-55,-71,-38,-63,-16,-16,0,0,-16,-16,0,-72,0,0,0,0,0,0,0,0,0,0,0,0,0,0,0,0,0,0,0,0,0,0,0,0,0,0,0,0,0,0,0,0,0,0,0,0,0,0,0,0,0,0,0,0,0,0,0,0,0,0,0,0]} 1. e4 {[%emt 0:00:02]} e5 {[%emt 0:00:01]} 2. Nf3 {[%emt 0:00:03]} Nc6 {[%emt 0:00:01]} 3. Bc4 {[%emt 0:00:17]} Bc5 {[%emt 0:00:03]} 4. O-O {[%emt 0:00:08]} Nf6 {[%emt 0:00:02]} 5. d3 {[%emt 0:00:01]} O-O {[%emt 0:00:02]} 6. Re1 {[%emt 0:00:04] C50: Hungarian Defence and Giuoco Pianissimo.} Ng4 $1 {[%emt 0:00:09][%mdl 4] outshines the older 6...d6.} (6... d6 7. c3 a6 8. a4 Ba7 9. Na3 h6 10. Nc2 Re8 11. Be3 Be6 12. Bxe6 Rxe6 13. Bxa7 Rxa7 14. d4 exd4 15. Nfxd4 Nxd4 16. Qxd4 Ra8 17. f3 a5 18. Ne3 Qd7 19. Red1 b6 20. Qc4 Rae8 21. Qb5 Qc8 22. b4 Qa8 23. Qd3 c6 24. bxa5 bxa5 {½-½ (38) So,W (2773)-Mamedyarov,S (2747) Wijk aan Zee 2016}) 7. Re2 {[%emt 0:00:03]} Kh8 {[%emt 0:00:03]} 8. h3 {[%emt 0:00:07]} f5 {[%emt 0:00:03][%cal Of5e4]} 9. Bg5 {[%emt 0:00:21]} (9. hxg4 fxg4 10. Ng5 Qf6 $17) 9... Nf6 {[%emt 0:00:09]} 10. Nc3 {[%emt 0:00:03]} d6 {[%emt 0:00:22]} 11. exf5 {[%emt 0:00:04]} Bxf5 {[%emt 0:00:12]} 12. Na4 {[%emt 0:00:03]} Bb6 {[%emt 0:00:30]} 13. Nxb6 {[%emt 0:00:02]} axb6 {[%emt 0:00:01]} 14. d4 {[%emt 0:00:01][%cal Rd4e5]} h6 {[%emt 0:00:02]} 15. dxe5 {[%emt 0:00:03]} dxe5 {[%emt 0:00:41]} 16. Bh4 {[%emt 0:00:08]} e4 {[%emt 0:00:34]} 17. Nh2 {[%emt 0:00:12]} Qe8 {[%emt 0:00:30]} 18. Qe1 {[%emt 0:02:00] [#]} Qg6 $146 {[%emt 0:00:26]} ({Predecessor:} 18... Rd8 19. Rd1 Rxd1 20. Qxd1 Be6 21. Bxe6 Qxe6 22. Bxf6 Qxf6 23. c3 e3 24. f3 Qe6 {½-½ (55) Dominguez Perez,L (2756)-Caruana,F (2781) Saint Louis 2022}) 19. Re3 {[%emt 0:02:02]} Nd4 {[%emt 0:00:45]} 20. Rc1 {[%emt 0:04:18]} Ra4 {[%emt 0:03:09][%cal Ba8a4,Ba4e4,Be4h4][%mdl 32]} 21. Bb3 {[%emt 0:03:12]} (21. b4 $11) 21... Nf3+ $1 $40 {[%emt 0:01:26][%mdl 128] Black is up to no good.} 22. Nxf3 {[%emt 0:01:18] [#]} exf3 $1 {[%emt 0:00:02][%csl Gf3][%cal Rg6g2]} 23. Bg3 $1 {[%emt 0:00:02]} Re4 {[%emt 0:00:13]} 24. gxf3 {[%emt 0:06:36]} Rh4 {[%emt 0:00:05] Threatens to win with ...Nh5.} 25. Be6 {[%emt 0:03:06]} (25. Qc3 $15) 25... Rxh3 $17 {[%emt 0:02:28] ...Nh5 is the strong threat.} (25... Bxh3 26. Bxh3 Rxh3 27. Qf1 $15) 26. Bxf5 {[%emt 0:00:27]} Qxf5 {[%emt 0:00:02]} 27. Rd1 {[%emt 0:00:23]} (27. Qf1 $1 $15) 27... Rh5 {[%emt 0:02:04] [#] White must now prevent ...Qh3.} ({Worse is} 27... Qxc2 28. Qe2 Qg6 29. Kg2 $17) 28. Re5 {[%emt 0:00:19]} Qxf3 {[%emt 0:01:20][%csl Gf3][%cal Rh5h1]} 29. Rxh5 {[%emt 0:00:01]} Qxh5 {[%emt 0:00:52]} 30. Bxc7 {[%emt 0:00:37]} (30. Rd4 $17 {is a better defense.}) 30... Ne4 {[%emt 0:00:10]} 31. Rd8 $1 $15 {[%emt 0:00:31]} Qg5+ {[%emt 0:00:27]} 32. Kh2 {[%emt 0:00:12]} Qh5+ {[%emt 0:01:23]} 33. Kg1 {[%emt 0:00:02]} Qg6+ {[%emt 0:00:40]} 34. Kh1 {[%emt 0:00:35]} Rxd8 {[%emt 0:03:02]} 35. Bxd8 {[%emt 0:00:00][%mdl 4096] Endgame KQB-KQN} Qc6 {[%emt 0:00:01] And now ...Ng5+ would win.} 36. f3 {[%emt 0:00:14]} Ng5 {[%emt 0:02:08]} (36... Nc5 $15 37. Qc3 Qd7 38. Bxb6 Na4) 37. Bxg5 $11 {[%emt 0:00:06]} Qxf3+ {[%emt 0:00:01]} 38. Kh2 {[%emt 0:00:01]} hxg5 {[%emt 0:00:01] KQ-KQ} 39. Qe7 {[%emt 0:02:02]} Qc6 {[%emt 0:02:11]} 40. Qxg5 {[%emt 0:00:16]} (40. Kg3 $11 {remains equal.}) 40... Qh6+ {[%emt 0:00:58]} (40... Qxc2+ $17 41. Kg3 Qd3+ 42. Kg2 Qe2+ 43. Kg3 Qe1+ 44. Kg2 (44. Kf3 Qf1+ 45. Kg4 Qg2+ 46. Kf5 Qd5+ 47. Kg6 Qxg5+ 48. Kxg5 b5 $19) 44... Qe6) 41. Qxh6+ {[%emt 0:00:02] The position is equal.} gxh6 {[%emt 0:00:01] K3P-K3P} 42. c4 {[%emt 0:00:46]} Kg7 {[%emt 0:00:02] Hoping for ...Kf6.} 43. Kg3 {[%emt 0:00:00]} Kf6 {[%emt 0:00:13] Strongly threatening ...Ke5.} 44. Kg4 {[%emt 0:00:05]} Ke5 {[%emt 0:00:09]} 45. Kh5 $1 {[%emt 0:00:00]} Kd4 {[%emt 0:00:01]} 46. Kxh6 {[%emt 0:00:01]} (46. b3 Kc3 47. Kg6 Kb2 $19) 46... Kxc4 {[%emt 0:03:03] KPP-KPP} 47. Kg5 {[%emt 0:00:01]} Kd3 {[%emt 0:00:04] ( -> ...Kc2)} 48. Kf5 {[%emt 0:00:04]} Kc2 {[%emt 0:00:10]} 49. Ke4 {[%emt 0:00:23]} Kxb2 {[%emt 0:00:05] KPP-KP} 50. Kd4 {[%emt 0:00:01]} Ka3 {[%emt 0:00:09]} 51. Kc4 {[%emt 0:00:15]} Ka4 {[%emt 0:00:02]} 52. Kc3 {[%emt 0:00:07]} b5 {[%emt 0:00:02]} 53. Kd4 {[%emt 0:00:01]} Ka3 {[%emt 0:01:36]} 54. Kc5 {[%emt 0:00:29]} b4 {[%emt 0:00:04]} 55. Kc4 {[%emt 0:00:00]} Ka4 {[%emt 0:00:04]} 56. Kc5 {[%emt 0:00:08]} Ka5 {[%emt 0:00:12]} 57. Kc4 {[%emt 0:00:10]} b6 {[%emt 0:00:05]} 58. Kd5 {[%emt 0:00:32]} Kb5 {[%emt 0:00:03]} 59. Kd6 {[%emt 0:00:36]} Ka5 {[%emt 0:00:05]} 60. Kc6 {[%emt 0:00:18]} Ka6 {[%emt 0:00:05]} 61. Kd6 {[%emt 0:00:10]} Kb5 {[%emt 0:00:02]} 62. Kd5 {[%emt 0:00:01]} Ka4 {[%emt 0:00:05]} 63. Kc6 {[%emt 0:00:09]} Ka3 {[%emt 0:00:02]} 64. Kb5 {[%emt 0:00:01]} b3 {[%emt 0:00:01]} 65. axb3 {[%emt 0:00:01]} Kxb3 {[%emt 0:00:01]} 66. Kxb6 {[%emt 0:00:01] Weighted Error Value: White=0.09 (flawless) /Black=0.11 (very precise)} 1/2-1/2